bitfinex/quotes_SOLUSD_20220128
["timestamp","ask_amount","ask_price","bid_price","bid_amount"]
[1643334314642,0.25,89.606,89.544,1.51756882]
[1643334314843,0.25,89.606,89.545,2.35223983]
[1643334315041,6.0,89.607,89.546,0.25]
[1643334315246,6.0,89.607,89.546,1.76756882]
[1643334315443,6.0,89.62,89.55,13.28]
[1643334315645,6.0,89.64,89.55,13.28]
[1643334315845,0.25,89.619,89.551,3.86980865]
[1643334316043,0.25,89.619,89.553,1.51756882]
[1643334316245,0.25,89.619,89.554,0.25]
[1643334316444,0.25,89.619,89.551,3.86980865]
[1643334316646,0.25,89.619,89.551,1.51756882]
[1643334316845,6.0,89.629,89.547,1.51756882]
[1643334316846,16.7584,89.62,89.547,1.51756882]
[1643334317044,16.7584,89.62,89.527,17.3222398]
[1643334317045,6.0,89.61,89.53,1.51756882]
[1643334317246,0.25,89.609,89.526,1.51756882]
[1643334317447,6.25,89.609,89.53,13.28]
[1643334317675,0.25,89.609,89.542,114.30223983]
[1643334318144,16.7555,89.63,89.543,2.10223983]
[1643334318344,6.0,89.62,89.544,0.25]
[1643334318745,23.8773,89.659,89.545,2.10223983]
[1643334318946,4.57034905,89.734,89.545,2.10223983]
[1643334318947,1.5045063,89.697,89.56,13.28]
[1643334319145,4.57034905,89.747,89.561,112.2]
[1643334319146,73.0858,89.669,89.561,112.2]
[1643334319346,73.0858,89.669,89.561,114.55223983]
[1643334319647,29.399649,89.67,89.572,38.86837565]
[1643334319846,29.399649,89.67,89.58,13.28]
[1643334320047,0.25,89.669,89.581,112.2]
[1643334320349,55.8125,89.72,89.581,114.55223983]
[1643334320350,22.8506,89.688,89.581,114.55223983]
[1643334320550,16.7444,89.7,89.591,6.0]
[1643334320847,23.3224,89.784,89.591,6.0]
[1643334320848,1.5045063,89.733,89.6,13.28]
[1643334321050,6.0,89.723,89.61,6.0]
[1643334321248,61.8107,89.73,89.62,13.28]
[1643334321447,32.43475104,89.722,89.62,13.28]
[1643334321651,16.7386,89.72,89.621,0.25]
[1643334321854,6.0,89.712,89.621,2.35223983]
[1643334322051,6.0,89.712,89.622,2.10223983]
[1643334322351,32.43475104,89.722,89.623,0.25]
[1643334322555,0.25,89.711,89.623,0.25]
[1643334322750,0.25,89.711,89.632,6.0]
[1643334323152,0.25,89.711,89.633,0.25]
[1643334323958,0.25,89.711,89.633,2.35223983]
[1643334324151,0.25,89.711,89.633,2.10223983]
[1643334324351,0.25,89.721,89.634,0.25]
[1643334324751,0.25,89.721,89.634,2.35223983]
[1643334325581,1.5045063,89.749,89.635,17.3670109]
[1643334325779,1.5045063,89.766,89.65,13.28]
[1643334325978,1.5045063,89.777,89.661,112.2]
[1643334326177,1.5045063,89.781,89.67,13.28]
[1643334326376,1.5045063,89.781,89.671,0.25]
[1643334326578,27.01786849,89.78,89.68,6.0]
[1643334326777,27.01786849,89.78,89.69,13.28]
[1643334326978,27.01786849,89.78,89.691,38.62439507]
[1643334327176,27.01786849,89.78,89.691,38.87439507]
[1643334327377,1.5045063,89.795,89.701,6.0]
[1643334327679,6.0,89.785,89.702,118.2]
[1643334327977,6.0,89.785,89.702,120.55223983]
[1643334328177,24.2164,89.82,89.71,6.0]
[1643334328178,6.0,89.794,89.71,6.0]
[1643334328381,0.25,89.793,89.72,13.28]
[1643334328577,1.5045063,89.814,89.72,13.28]
[1643334328578,1.5045063,89.814,89.73,6.0]
[1643334328777,2.99918993,89.84,89.74,13.28]
[1643334328778,1.5045063,89.815,89.74,13.28]
[1643334328978,1.5045063,89.838,89.75,6.0]
[1643334329177,1.5045063,89.844,89.75,19.28]
[1643334329380,1.5045063,89.862,89.751,2.35223983]
[1643334329577,1.5045063,89.862,89.761,6.0]
[1643334329779,1.5045063,89.864,89.77,13.28]
[1643334329978,6.0,89.852,89.77,22.73]
[1643334330182,6.0,89.854,89.771,0.25]
[1643334330378,6.0,89.854,89.78,6.0]
[1643334330579,5.5,89.855,89.781,48.41005183]
[1643334330778,5.5,89.855,89.781,48.66005183]
[1643334330981,5.5,89.855,89.782,6.0]
[1643334331380,5.5,89.855,89.783,0.25]
[1643334331578,1.5045063,89.882,89.783,0.25]
[1643334331780,16.7091,89.88,89.783,0.25]
[1643334331980,1.5045063,89.884,89.783,0.25]
[1643334332180,24.69714439,89.879,89.783,0.25]
[1643334332382,6.0,89.874,89.782,0.25]
[1643334332587,6.0,89.869,89.782,0.25]
[1643334332782,0.25,89.868,89.782,0.25]
[1643334332983,0.25,89.868,89.791,6.0]
[1643334333286,16.7086,89.89,89.792,0.25]
[1643334333486,16.7086,89.89,89.8,6.0]
[1643334333684,6.0,89.88,89.8,6.0]
[1643334333884,16.7086,89.89,89.8,13.28]
[1643334334083,16.7169,89.86,89.783,2.10006429]
[1643334334285,1.87107747,89.859,89.781,42.41005183]
[1643334334582,6.0,89.849,89.781,42.41005183]
[1643334334781,0.25,89.848,89.781,42.41005183]
[1643334335184,8.95669142,89.848,89.781,42.41005183]
[1643334335384,22.717,89.84,89.781,42.41005183]
[1643334335583,6.0,89.84,89.781,42.41005183]
[1643334335987,6.0,89.873,89.781,42.41005183]
[1643334336384,19.84121923,89.874,89.781,42.41005183]
[1643334336584,6.0,89.864,89.781,42.41005183]
[1643334336786,0.25,89.863,89.782,0.25]
[1643334336987,6.0,89.862,89.782,0.25]
[1643334337284,3.59085017,89.861,89.782,0.25]
[1643334337688,6.0,89.851,89.782,0.25]
[1643334338284,6.0,89.87,89.782,0.25]
[1643334338688,6.0,89.87,89.781,42.41005183]
[1643334338887,16.7138,89.86,89.781,42.41005183]
[1643334339086,6.0,89.85,89.781,42.41005183]
[1643334339491,130.56976247,89.906,89.782,0.25]
[1643334339691,1.5045063,89.921,89.782,0.25]
[1643334339890,1.5045063,89.93,89.782,2.35000492]
[1643334340093,1.5045063,89.933,89.792,6.0]
[1643334340288,73.6941,89.947,89.8,13.28]
[1643334340289,1.5045063,89.936,89.8,13.28]
[1643334340488,1.5045063,89.945,89.8,19.28]
[1643334340688,1.5045063,89.951,89.801,28.75022999]
[1643334340892,69.9277,89.959,89.803,6.0]
[1643334341092,22.6984,89.959,89.84,16.6918]
[1643334341289,16.6927,89.97,89.85,19.28]
[1643334341489,4.46119772,89.99,89.85,19.28]
[1643334341691,1.5045063,89.99,89.851,0.25]
[1643334341891,6.0,89.98,89.851,2.35000492]
[1643334342090,6.0,89.984,89.861,6.0]
[1643334342290,31.61381952,89.983,89.87,13.28]
[1643334342489,6.0,89.973,89.87,13.28]
[1643334342690,6.0,89.973,89.871,0.25]
[1643334343489,6.0,89.984,89.871,0.25]
[1643334343990,33.31088304,89.983,89.87,13.28]
[1643334344190,33.31088304,89.983,89.871,0.25]
[1643334344390,6.0,89.973,89.871,0.25]
[1643334344590,16.6982,89.95,89.871,0.25]
[1643334344791,6.0,89.972,89.871,0.25]
[1643334345395,0.25,89.971,89.871,0.25]
[1643334345692,16.6925,89.97,89.871,0.25]
[1643334345892,25.67646698,89.969,89.862,42.41005183]
[1643334346091,6.0,89.959,89.862,42.41005183]
[1643334346301,0.25,89.958,89.862,42.41005183]
[1643334346491,6.25,89.958,89.862,42.41005183]
[1643334346692,9.20669142,89.958,89.862,42.41005183]
[1643334346994,2.95669142,89.957,89.862,42.41005183]
[1643334347392,16.6996,89.94,89.794,70.6908]
[1643334347594,6.0,89.93,89.8,13.28]
[1643334347795,6.0,89.93,89.74,112.2]
[1643334347796,0.25,89.929,89.79,13.28]
[1643334347995,112.2,89.928,89.78,13.28]
[1643334348392,8.79780678,89.917,89.781,48.68458949]
[1643334348593,6.0,89.907,89.791,6.0]
[1643334348796,6.0,89.907,89.8,13.28]
[1643334348993,0.25,89.927,89.8,13.28]
[1643334348994,6.0,89.919,89.81,6.0]
[1643334349193,6.0,89.919,89.821,112.2]
[1643334349493,6.0,89.919,89.83,16.6935]
[1643334349693,16.6967,89.95,89.83,16.6935]
[1643334349694,6.0,89.947,89.83,16.6935]
[1643334349895,6.0,89.94,89.84,13.28]
[1643334350094,6.0,89.936,89.84,13.28]
[1643334350296,6.0,89.936,89.841,0.25]
[1643334350493,6.0,89.936,89.841,2.35079068]
[1643334350696,6.0,89.936,89.842,2.10079068]
[1643334350893,6.0,89.947,89.843,0.25]
[1643334351296,6.0,89.947,89.842,2.10079068]
[1643334351297,6.0,89.947,89.844,2.10079068]
[1643334351496,26.71693458,89.945,89.845,41.43702614]
[1643334351896,6.0,89.935,89.845,41.43702614]
[1643334352097,7.50733918,89.929,89.845,41.43702614]
[1643334352297,0.25,89.928,89.845,41.43702614]
[1643334352499,6.0,89.919,89.845,41.43702614]
[1643334352898,0.25,89.918,89.83,13.28]
[1643334353098,112.2,89.909,89.82,13.28]
[1643334353296,0.25,89.908,89.79,13.28]
[1643334353496,112.2,89.898,89.79,13.28]
[1643334353696,6.0,89.899,89.791,0.25]
[1643334353899,26.71693458,89.887,89.791,47.19795955]
[1643334354097,6.0,89.877,89.791,47.19795955]
[1643334354296,0.25,89.876,89.791,47.19795955]
[1643334354499,6.0,89.88,89.792,112.2]
[1643334354697,6.0,89.88,89.792,114.30063081]
[1643334354896,6.0,89.912,89.793,19.91364451]
[1643334355098,6.0,89.919,89.803,6.0]
[1643334355299,6.0,89.919,89.811,38.00776669]
[1643334355497,6.0,89.926,89.811,38.00776669]
[1643334355698,6.0,89.926,89.812,19.38809678]
[1643334355898,6.0,89.922,89.812,19.38809678]
[1643334356101,6.0,89.917,89.812,0.25]
[1643334356300,0.25,89.916,89.812,0.25]
[1643334356503,6.0,89.912,89.812,0.25]
[1643334356701,6.0,89.912,89.813,2.09619914]
[1643334356902,0.25,89.911,89.814,0.25]
[1643334357301,6.0,89.92,89.815,2.09619914]
[1643334357499,6.0,89.917,89.815,38.79730962]
[1643334357800,6.0,89.917,89.825,6.0]
[1643334357999,1.5045063,89.936,89.84,13.28]
[1643334358000,6.0,89.926,89.84,13.28]
[1643334358199,6.0,89.926,89.841,42.89758987]
[1643334358399,0.25,89.925,89.842,112.2]
[1643334358599,6.0,89.924,89.842,114.29619914]
[1643334358800,0.25,89.923,89.843,0.25]
[1643334359004,0.25,89.923,89.843,2.34619914]
[1643334359200,0.25,89.923,89.844,2.09619914]
[1643334359402,0.25,89.923,89.845,0.25]
[1643334359602,6.0,89.921,89.845,0.25]
[1643334359802,0.25,89.92,89.845,0.25]
[1643334360403,6.0,89.924,89.845,0.25]
[1643334360602,6.0,89.924,89.841,42.89758987]
[1643334360603,6.0,89.923,89.843,0.25]
[1643334360803,6.0,89.923,89.841,42.89758987]
[1643334361202,7.5045063,89.927,89.841,42.89758987]
[1643334361404,16.7041,89.91,89.841,42.89758987]
[1643334361607,0.89171341,89.899,89.841,42.89758987]
[1643334361803,1.14171341,89.899,89.774,17.1029]
[1643334362002,6.0,89.889,89.79,13.28]
[1643334362206,6.0,89.889,89.793,6.0]
[1643334362405,16.7084,89.88,89.793,6.0]
[1643334362604,16.7084,89.88,89.79,13.28]
[1643334362805,0.25,89.879,89.791,41.24609763]
[1643334363005,6.0,89.87,89.792,112.2]
[1643334363206,6.0,89.87,89.793,0.25]
[1643334363607,6.0,89.898,89.794,2.08538711]
[1643334363809,1.5045063,89.918,89.802,6.0]
[1643334364009,1.5045063,89.932,89.81,13.28]
[1643334364210,1.5045063,89.936,89.81,13.28]
[1643334364408,1.5045063,89.936,89.821,41.24609763]
[1643334364607,33.3307458,89.944,89.83,13.28]
[1643334364608,34.8352521,89.944,89.83,13.28]
[1643334364809,1.5045063,89.944,89.831,112.45]
[1643334365009,0.25,89.943,89.831,112.45]
[1643334365218,0.25,89.943,89.831,133.67971901]
[1643334365219,6.0,89.934,89.831,133.67971901]
[1643334365407,1.5045063,89.957,89.831,133.67971901]
[1643334365408,6.0,89.947,89.832,21.22971901]
[1643334365609,6.0,89.947,89.842,118.2]
[1643334365809,38.2367192,89.946,89.85,13.28]
[1643334366009,6.0,89.936,89.85,13.28]
[1643334366210,6.0,89.936,89.851,0.25]
[1643334366435,0.25,89.935,89.851,114.54162223]
[1643334366636,0.25,89.935,89.852,2.09162223]
[1643334366840,0.25,89.935,89.853,0.25]
[1643334367236,0.25,89.935,89.854,2.09162223]
[1643334367536,38.21802996,89.944,89.854,2.09162223]
[1643334367739,6.0,89.949,89.855,0.25]
[1643334367938,6.0,89.934,89.871,112.2]
[1643334368135,6.0,89.949,89.871,112.2]
[1643334368337,1.5045063,89.965,89.872,0.25]
[1643334368536,1.5045063,89.974,89.872,0.25]
[1643334368736,1.5045063,89.981,89.882,112.2]
[1643334368937,1.5045063,89.983,89.882,112.2]
[1643334369138,1.5045063,89.983,89.892,112.2]
[1643334369337,1.5045063,89.985,89.893,0.25]
[1643334369540,6.0,89.975,89.902,6.0]
[1643334369739,1.5045063,90.011,89.911,112.2]
[1643334370138,2.99918993,90.036,89.921,6.0]
[1643334370139,1.5045063,90.012,89.921,6.0]
[1643334370338,1.5045063,90.012,89.923,41.24609763]
[1643334370544,1.5045063,90.012,89.924,112.2]
[1643334370739,32.27293774,90.021,89.924,112.45]
[1643334370941,6.0,90.002,89.925,2.09003335]
[1643334371244,6.0,90.011,89.926,0.25]
[1643334371438,6.0,90.011,89.931,112.2]
[1643334371638,23.753,90.04,89.931,112.2]
[1643334371639,6.0,90.012,89.931,112.2]
[1643334371840,6.0,90.012,89.932,2.34003335]
[1643334372144,6.0,90.01,89.932,2.34003335]
[1643334372441,1.5045063,90.033,89.933,2.09003335]
[1643334372640,73.6962063,90.035,89.933,2.09003335]
[1643334372939,72.1917,90.035,89.934,0.25]
[1643334373139,72.1917,90.035,89.933,2.09003335]
[1643334373140,1.5045063,90.034,89.933,2.09003335]
[1643334373339,1.5045063,90.022,89.923,41.24609763]
[1643334373541,6.0,90.012,89.9,13.28]
[1643334373840,6.0,90.012,89.918,0.25]
[1643334374041,6.0,90.003,89.918,0.25]
[1643334374241,6.0,90.003,89.87,13.28]
[1643334374442,6.0,90.003,89.864,2.09003335]
[1643334374443,179.49,89.995,89.864,2.09003335]
[1643334374743,1.5045063,89.986,89.846,36.69896809]
[1643334374943,67.29,89.979,89.839,2.09003335]
[1643334375140,67.29,89.966,89.834,48.79267291]
[1643334375341,55.6905,89.93,89.834,48.79267291]
[1643334375540,6.0,89.92,89.834,48.79267291]
[1643334375942,16.7076,89.9,89.834,48.79267291]
[1643334376140,6.25,89.919,89.834,48.79267291]
[1643334376141,6.0,89.89,89.834,48.79267291]
[1643334376341,0.25,89.889,89.834,48.79267291]
[1643334376543,6.0,89.888,89.834,48.79267291]
[1643334376942,6.0,89.888,89.835,0.25]
[1643334377144,6.0,89.93,89.835,2.34003335]
[1643334377346,6.0,89.93,89.835,0.25]
[1643334377943,37.77416116,89.929,89.835,0.25]
[1643334378141,6.0,89.919,89.835,0.25]
[1643334378345,16.7044,89.91,89.835,0.25]
[1643334378542,6.0,89.9,89.835,0.25]
[1643334378945,6.25,89.899,89.835,0.25]
[1643334379144,0.25,89.899,89.836,2.09003335]
[1643334379343,112.2,89.939,89.837,0.25]
[1643334379546,6.0,89.929,89.837,0.25]
[1643334379745,6.0,89.929,89.838,2.09003335]
[1643334379946,16.7025,89.92,89.838,2.09003335]
[1643334380244,16.7025,89.92,89.839,0.25]
[1643334380647,24.6725,89.949,89.85,13.28]
[1643334380947,6.0,89.939,89.851,129.8512602]
[1643334381144,6.0,89.939,89.851,131.94129355]
[1643334381348,24.6725,89.949,89.852,19.49129355]
[1643334381543,57.46281733,89.949,89.852,78.34229993]
[1643334381744,57.46281733,89.949,89.853,14.37893879]
[1643334381945,0.25,89.948,89.853,40.21020863]
[1643334382148,0.25,89.948,89.854,31.89020863]
[1643334382345,0.25,89.948,89.855,112.45]
[1643334382551,24.5251,89.976,89.871,112.2]
[1643334382746,16.6917,89.98,89.87,13.28]
[1643334382946,16.6917,89.98,89.872,0.25]
[1643334383146,15.1917,89.98,89.872,0.25]
[1643334383347,6.0,89.97,89.872,0.25]
[1643334383547,28.72572178,89.969,89.873,2.09003335]
[1643334383746,0.25,89.968,89.874,0.25]
[1643334384148,0.25,89.968,89.875,2.09003335]
[1643334384346,0.25,89.968,89.876,0.25]
[1643334384950,15.1917,89.98,89.877,2.09003335]
[1643334385154,24.019,89.997,89.877,2.09003335]
[1643334385350,6.0,89.97,89.878,0.25]
[1643334385551,6.0,89.987,89.878,0.25]
[1643334385850,24.019,89.997,89.878,0.25]
[1643334385851,28.19566225,89.986,89.879,2.09003335]
[1643334386251,97.7974,89.999,89.88,43.33017528]
[1643334386450,23.8419,89.999,89.889,6.0]
[1643334386651,7.58864522,90.106,89.889,6.0]
[1643334386652,1.5045063,90.02,89.9,13.28]
[1643334386852,1.5045063,90.023,89.901,112.45]
[1643334387052,6.0,90.013,89.911,6.0]
[1643334387252,1.5045063,90.026,89.901,112.45]
[1643334387253,112.2,90.011,89.912,31.66679873]
[1643334387656,6.0,90.001,89.912,31.66679873]
[1643334388354,0.25,90.0,89.913,2.08468786]
[1643334388554,6.0,90.001,89.913,2.08468786]
[1643334388854,30.05272091,90.012,89.914,0.25]
[1643334389053,4.57034905,90.076,89.914,0.25]
[1643334389054,1.5045063,90.03,89.914,0.25]
[1643334389355,1.5045063,90.032,89.915,31.5248535]
[1643334389552,1.5045063,90.036,89.93,13.28]
[1643334389753,1.5045063,90.045,89.931,0.25]
[1643334389957,38.87469029,90.044,89.941,37.86120941]
[1643334390357,38.87469029,90.044,89.942,13.07966655]
[1643334390555,1.5045063,90.051,89.95,16.6714]
[1643334390754,6.0,90.034,89.951,112.45]
[1643334390958,6.0,90.041,89.951,112.45]
[1643334391155,0.25,90.033,89.951,114.53468786]
[1643334391357,77.9336,90.055,89.951,114.53468786]
[1643334391358,0.25,90.04,89.951,114.53468786]
[1643334391756,39.35204686,90.042,89.951,112.45]
[1643334392157,6.0,90.032,89.951,112.45]
[1643334392760,6.0,90.032,89.951,114.529066]
[1643334393159,0.25,90.031,89.951,114.529066]
[1643334393357,0.25,90.031,89.951,112.45]
[1643334393957,0.25,90.031,89.951,0.25]
[1643334394159,0.25,90.031,89.941,37.86120941]
[1643334394759,1.5045063,90.027,89.941,37.86120941]
[1643334394957,0.8722269,90.026,89.941,37.86120941]
[1643334395161,6.0,90.017,89.941,37.86120941]
[1643334395362,0.25,90.016,89.942,2.079066]
[1643334395561,6.25,90.016,89.942,2.079066]
[1643334395760,6.25,90.016,89.941,37.86120941]
[1643334396260,6.25,90.016,89.942,0.25]
[1643334396459,6.0,90.008,89.941,37.86120941]
[1643334396661,1.5045063,90.032,89.941,37.86120941]
[1643334396864,1.5045063,90.04,89.941,37.86120941]
[1643334397162,6.0,90.03,89.941,37.86120941]
[1643334397563,37.30508372,90.029,89.95,13.28]
[1643334397761,37.55508372,90.029,89.951,0.25]
[1643334398162,37.55508372,90.029,89.951,2.329066]
[1643334398361,37.55508372,90.029,89.937,2.079066]
[1643334398566,6.0,90.019,89.937,2.079066]
[1643334398763,0.25,90.018,89.919,2.079066]
[1643334398969,0.25,90.018,89.93,13.28]
[1643334399164,0.25,90.018,89.921,2.079066]
[1643334399366,0.25,90.018,89.922,46.80857798]
[1643334399766,0.25,90.018,89.923,0.25]
[1643334399965,0.25,90.018,89.922,46.80857798]
[1643334400392,0.25,90.018,89.859,1.51756882]
[1643334400393,0.32173237,89.995,89.859,1.51756882]
[1643334400594,0.32173237,89.995,89.757,3.0]
[1643334400595,0.31645664,89.965,89.775,3.06899375]
[1643334400792,3.49,89.864,89.736,3.06899375]
[1643334400995,6.0,89.854,89.736,3.06899375]
[1643334401192,6.0,89.854,89.725,23.6491]
[1643334401393,0.25,89.853,89.726,36.94786374]
[1643334401593,6.0,89.847,89.726,36.94786374]
[1643334401791,0.25,89.846,89.73,13.28]
[1643334401991,6.0,89.847,89.73,13.28]
[1643334402192,6.0,89.854,89.73,13.28]
[1643334402396,0.25,89.846,89.73,13.28]
[1643334402592,0.25,89.846,89.73,125.48]
[1643334402791,0.25,89.846,89.74,6.0]
[1643334403393,0.25,89.853,89.741,0.25]
[1643334403892,0.25,89.853,89.741,43.51121555]
[1643334404093,6.0,89.851,89.741,43.51121555]
[1643334404294,0.25,89.85,89.742,2.07354652]
[1643334404694,0.25,89.85,89.743,0.25]
[1643334405099,0.25,89.85,89.744,2.07354652]
[1643334405293,0.25,89.85,89.745,0.25]
[1643334405495,0.25,89.853,89.745,0.25]
[1643334405696,0.25,89.853,89.746,2.07354652]
[1643334405895,0.25,89.853,89.7,3.06899375]
[1643334405896,0.30193759,89.816,89.712,0.0081]
[1643334406095,13.28,89.82,89.65,112.2]
[1643334406294,0.25,89.819,89.65,112.2]
[1643334406595,6.0,89.81,89.648,15.36179019]
[1643334406895,0.25,89.809,89.682,43.980059]
[1643334407095,6.0,89.808,89.682,43.980059]
[1643334407294,0.25,89.807,89.692,6.0]
[1643334407695,0.25,89.807,89.693,112.45]
[1643334407895,0.25,89.807,89.701,38.58061273]
[1643334408299,0.25,89.807,89.702,0.25]
[1643334408497,0.25,89.818,89.702,0.25]
[1643334411497,6.0,89.819,89.702,0.25]
[1643334411698,7.58864522,90.003,89.71,13.28]
[1643334411902,2.99918993,89.966,89.828,2.06805009]
[1643334412102,22.6228,89.988,89.84,13.28]
[1643334412299,22.6228,89.988,89.841,112.45]
[1643334412500,32.24764361,89.987,89.851,45.22511114]
[1643334412699,32.24764361,89.987,89.851,39.22511114]
[1643334412899,112.2,89.986,89.852,0.25]
[1643334413101,32.24764361,89.987,89.852,2.33048276]
[1643334413301,6.0,89.976,89.853,2.08048276]
[1643334413506,6.0,89.977,89.853,2.08048276]
[1643334413703,112.2,89.976,89.854,0.25]
[1643334413906,112.2,89.969,89.851,39.22511114]
[1643334414107,9.12663252,89.958,89.851,39.22511114]
[1643334414304,112.2,89.949,89.851,39.22511114]
[1643334414505,6.0,89.939,89.851,39.22511114]
[1643334414705,32.24764361,89.938,89.851,39.22511114]
[1643334414903,112.2,89.937,89.851,39.22511114]
[1643334415104,118.2,89.927,89.766,24.1996]
[1643334415303,118.2,89.927,89.74,55.6886]
[1643334415304,13.28,89.92,89.74,13.28]
[1643334415506,6.0,89.91,89.752,2.08048276]
[1643334415704,13.28,89.9,89.752,2.08048276]
[1643334416110,9.12663252,89.889,89.753,37.86475071]
[1643334416308,0.25,89.888,89.753,37.86475071]
[1643334416506,6.0,89.879,89.754,2.08048276]
[1643334416907,0.25,89.878,89.755,0.25]
[1643334417611,32.24764361,89.869,89.754,0.25]
[1643334417811,0.25,89.868,89.753,37.86475071]
[1643334418110,6.0,89.859,89.753,37.86475071]
[1643334418311,0.25,89.858,89.753,37.86475071]
[1643334418509,6.0,89.85,89.753,37.86475071]
[1643334418712,13.28,89.84,89.753,37.86475071]
[1643334418909,55.7696,89.83,89.753,37.86475071]
[1643334419214,32.24764361,89.829,89.69,13.28]
[1643334419409,32.49764361,89.829,89.67,13.28]
[1643334419610,6.0,89.819,89.679,2.08048276]
[1643334419810,0.25,89.818,89.679,2.08048276]
[1643334420209,0.25,89.818,89.68,36.87199032]
[1643334420411,0.25,89.818,89.68,37.12199032]
[1643334420711,9.12663252,89.809,89.681,2.08048276]
[1643334420913,6.0,89.81,89.681,17.93693705]
[1643334421110,24.4632,89.869,89.702,111.9]
[1643334421312,6.0,89.83,89.71,29.9961]
[1643334421511,6.0,89.83,89.703,2.33048276]
[1643334421711,0.25,89.829,89.703,2.33048276]
[1643334421911,0.25,89.829,89.704,40.93373355]
[1643334422312,0.25,89.829,89.705,0.25]
[1643334422712,0.25,89.829,89.704,40.93373355]
[1643334422912,1.49905036,89.829,89.704,40.93373355]
[1643334423120,6.0,89.819,89.704,40.93373355]
[1643334423311,13.28,89.81,89.704,40.93373355]
[1643334423511,22.7324,89.8,89.704,40.93373355]
[1643334423711,112.2,89.799,89.704,40.93373355]
[1643334424016,118.45,89.799,89.704,40.93373355]
[1643334424211,6.48094525,89.789,89.704,40.93373355]
[1643334424511,6.0,89.779,89.704,40.93373355]
[1643334424911,0.25,89.778,89.704,40.93373355]
[1643334426915,0.25,89.778,89.668,111.9]
[1643334427116,0.25,89.778,89.669,0.25]
[1643334428116,0.25,89.778,89.67,2.08920076]
[1643334428316,0.25,89.778,89.671,37.02718468]
[1643334428918,6.0,89.779,89.671,37.02718468]
[1643334429120,6.0,89.779,89.672,2.08920076]
[1643334429319,6.0,89.779,89.673,0.25]
[1643334429717,6.0,89.779,89.674,2.08920076]
[1643334430119,6.0,89.779,89.675,0.25]
[1643334430419,0.25,89.778,89.673,0.25]
[1643334431220,0.25,89.778,89.673,2.08920076]
[1643334431621,0.25,89.778,89.674,0.25]
[1643334432219,16.7108,89.814,89.675,2.08920076]
[1643334432625,16.7108,89.814,89.676,0.25]
[1643334432822,16.7108,89.814,89.675,2.08920076]
[1643334433021,112.2,89.799,89.671,36.77718468]
[1643334433222,28.22617827,89.798,89.671,36.77718468]
[1643334433624,112.2,89.797,89.671,36.77718468]
[1643334434225,6.0,89.787,89.672,0.25]
[1643334434627,6.0,89.78,89.672,0.25]
[1643334434824,12.14809786,89.779,89.672,0.25]
[1643334435022,6.0,89.769,89.672,0.25]
[1643334435224,0.25,89.779,89.68,13.28]
[1643334435424,0.25,89.768,89.68,13.28]
[1643334435622,0.25,89.779,89.681,0.25]
[1643334436524,6.0,89.797,89.681,0.25]
[1643334437024,0.25,89.796,89.671,36.77718468]
[1643334437225,16.7342,89.79,89.671,36.77718468]
[1643334437424,4.92892656,89.789,89.671,36.77718468]